[Event "Schack-SM 2023: Veteran-SM 50+"]
[Site "Helsingborg Arena, Mellersta Stenbocksgatan 14, Helsingborg, Sweden"]
[Date "2023.07.05"]
[Round "5.6"]
[White "Knudsen, Andre"]
[Black "Nurmi, Tommy"]
[Result "0-1"]
[TimeControl "90 minutes for 40 moves + 30 minutes for the rest of games + 30 seconds per move from move one."]
[WhiteElo "1842"]
[BlackElo "2010"]

1. d4 {[%clk 01:30:57]} {[%emt 00:00:02]} d5 {[%clk 01:30:41]} {[%emt
00:00:19]} 2. Bf4 {[%clk 01:30:51]} {[%emt 00:00:35]} e6 {[%clk 01:30:28]}
{[%emt 00:00:44]} 3. e3 {[%clk 01:31:12]} {[%emt 00:00:08]} Bd6 {[%clk
01:30:19]} {[%emt 00:00:40]} 4. Bg3 {[%clk 01:31:25]} {[%emt 00:00:17]} Nf6
{[%clk 01:28:21]} {[%emt 00:02:28]} 5. Nd2 {[%clk 01:31:10]} {[%emt 00:00:44]}
Nc6 {[%clk 01:26:40]} {[%emt 00:02:12]} 6. Bb5 {[%clk 01:28:46]} {[%emt
00:02:54]} Bd7 {[%clk 01:26:26]} {[%emt 00:00:44]} 7. Ngf3 {[%clk 01:21:26]}
{[%emt 00:07:50]} Qe7 {[%clk 01:19:14]} {[%emt 00:07:41]} 8. O-O {[%clk
01:12:43]} {[%emt 00:09:13]} O-O {[%clk 00:58:18]} {[%emt 00:21:27]} 9. c4
{[%clk 01:07:23]} {[%emt 00:05:50]} Bxg3 {[%clk 00:52:31]} {[%emt 00:06:16]} 10.
hxg3 {[%clk 01:07:29]} {[%emt 00:00:24]} dxc4 {[%clk 00:45:00]} {[%emt
00:08:02]} 11. e4 {[%clk 00:46:17]} {[%emt 00:21:41]} Qb4 {[%clk 00:35:49]}
{[%emt 00:09:42]} 12. Bxc4 {[%clk 00:44:14]} {[%emt 00:02:32]} Na5 {[%clk
00:30:55]} {[%emt 00:05:23]} 13. Bd3 {[%clk 00:41:09]} {[%emt 00:03:36]} e5
{[%clk 00:13:29]} {[%emt 00:17:57]} 14. Nxe5 {[%clk 00:34:55]} {[%emt
00:06:44]} Qxd4 {[%clk 00:12:05]} {[%emt 00:01:53]} 15. Ndf3 {[%clk 00:35:18]}
{[%emt 00:00:07]} Qxb2 {[%clk 00:09:02]} {[%emt 00:03:33]} 16. Nxd7 {[%clk
00:33:08]} {[%emt 00:02:41]} Nxd7 {[%clk 00:09:25]} {[%emt 00:00:07]} 17. Rb1
{[%clk 00:28:43]} {[%emt 00:04:54]} Qa3 {[%clk 00:05:53]} {[%emt 00:04:02]} 18.
e5 {[%clk 00:28:23]} {[%emt 00:00:51]} Rfd8 {[%clk 00:05:25]} {[%emt 00:00:58]}
19. Qc2 {[%clk 00:25:28]} {[%emt 00:03:24]} Nf8 {[%clk 00:05:19]} {[%emt
00:00:36]} 20. Be4 {[%clk 00:25:43]} {[%emt 00:00:14]} Qe7 {[%clk 00:03:52]}
{[%emt 00:01:58]} 21. Rfe1 {[%clk 00:25:49]} {[%emt 00:00:24]} c5 {[%clk
00:03:02]} {[%emt 00:01:21]} 22. Rb5 {[%clk 00:24:02]} {[%emt 00:02:17]} Nc6
{[%clk 00:02:13]} {[%emt 00:01:20]} 23. Rxc5 {[%clk 00:22:32]} {[%emt
00:01:59]} Nd4 {[%clk 00:02:04]} {[%emt 00:00:39]} 24. Qc3 {[%clk 00:20:30]}
{[%emt 00:02:32]} Nxf3+ {[%clk 00:02:13]} {[%emt 00:00:20]} 25. gxf3 {[%clk
00:20:52]} {[%emt 00:00:08]} Rab8 {[%clk 00:02:13]} {[%emt 00:00:31]} 26. Kg2
{[%clk 00:20:41]} {[%emt 00:00:40]} Ne6 {[%clk 00:02:28]} {[%emt 00:00:16]} 27.
Rd5 {[%clk 00:21:03]} {[%emt 00:00:08]} Rxd5 {[%clk 00:02:11]} {[%emt
00:00:47]} 28. Bxd5 {[%clk 00:21:30]} {[%emt 00:00:03]} Rd8 {[%clk 00:01:30]}
{[%emt 00:01:11]} 29. Be4 {[%clk 00:21:52]} {[%emt 00:00:07]} Ng5 {[%clk
00:01:31]} {[%emt 00:00:30]} 30. Bc2 {[%clk 00:20:51]} {[%emt 00:01:30]} Qe6
{[%clk 00:01:52]} {[%emt 00:00:10]} 31. Rh1 {[%clk 00:21:01]} {[%emt 00:00:19]}
Rc8 {[%clk 00:01:57]} {[%emt 00:00:25]} 32. Qd3 {[%clk 00:21:17]} {[%emt
00:00:14]} h6 {[%clk 00:02:15]} {[%emt 00:00:13]} 33. f4 {[%clk 00:21:38]}
{[%emt 00:00:09]} Qc6+ {[%clk 00:02:35]} {[%emt 00:00:11]} 34. Kh2 {[%clk
00:21:13]} {[%emt 00:00:54]} Qxc2 {[%clk 00:02:21]} {[%emt 00:00:44]} 35. Qxc2
{[%clk 00:21:10]} {[%emt 00:00:33]} Rxc2 {[%clk 00:02:50]} {[%emt 00:00:01]} 36.
fxg5 {[%clk 00:21:28]} {[%emt 00:00:13]} Rxf2+ {[%clk 00:02:48]} {[%emt
00:00:31]} 37. Kh3 {[%clk 00:21:56]} {[%emt 00:00:01]} Rxa2 {[%clk 00:02:34]}
{[%emt 00:00:45]} 38. gxh6 {[%clk 00:22:22]} {[%emt 00:00:04]} gxh6 {[%clk
00:02:54]} {[%emt 00:00:09]} 39. Kg4 {[%clk 00:22:51]} Kg7 {[%clk 00:03:15]}
{[%emt 00:00:11]} 40. Kf5 {[%clk 00:23:03]} {[%emt 00:00:18]} Ra5 {[%clk
00:03:17]} {[%emt 00:00:27]} 41. Rc1 {[%clk 00:17:56]} {[%emt 00:05:38]} Ra6
{[%clk 00:28:09]} {[%emt 00:05:39]} 42. Rc7 {[%clk 00:48:09]} {[%emt 00:00:16]}
Rb6 {[%clk 00:28:29]} {[%emt 00:00:10]} 43. e6 {[%clk 00:48:18]} {[%emt
00:00:21]} Rxe6 {[%clk 00:28:27]} {[%emt 00:00:31]} 44. Rxb7 {[%clk 00:48:42]}
{[%emt 00:00:07]} Rf6+ {[%clk 00:27:51]} {[%emt 00:01:06]} 45. Kg4 {[%clk
00:49:01]} {[%emt 00:00:10]} a6 {[%clk 00:27:49]} {[%emt 00:00:33]} 46. Ra7
{[%clk 00:49:25]} {[%emt 00:00:06]} Kg6 {[%clk 00:28:00]} {[%emt 00:00:19]} 47.
Ra8 {[%clk 00:49:49]} {[%emt 00:00:06]} Rb6 {[%clk 00:27:57]} {[%emt 00:00:32]}
48. Rg8+ {[%clk 00:49:44]} {[%emt 00:00:35]} Kh7 {[%clk 00:27:15]} {[%emt
00:01:13]} 49. Ra8 {[%clk 00:50:08]} {[%emt 00:00:06]} Kg7 {[%clk 00:24:40]}
{[%emt 00:03:04]} 50. Kh4 {[%clk 00:49:10]} {[%emt 00:01:28]} Rb4+ {[%clk
00:24:44]} {[%emt 00:00:26]} 51. Kh3 {[%clk 00:49:11]} {[%emt 00:00:29]} Ra4
{[%clk 00:25:07]} {[%emt 00:00:07]} 52. g4 {[%clk 00:49:22]} {[%emt 00:00:19]}
Ra1 {[%clk 00:25:03]} {[%emt 00:00:34]} 53. Kg2 {[%clk 00:49:45]} {[%emt
00:00:08]} a5 {[%clk 00:24:49]} {[%emt 00:00:44]} 54. Ra6 {[%clk 00:49:58]}
{[%emt 00:00:17]} a4 {[%clk 00:25:04]} {[%emt 00:00:15]} 55. Kh2 {[%clk
00:50:23]} {[%emt 00:00:05]} a3 {[%clk 00:25:12]} {[%emt 00:00:23]} 56. Ra7
{[%clk 00:50:20]} {[%emt 00:00:33]} a2 {[%clk 00:24:55]} {[%emt 00:00:46]} 57.
Ra6 {[%clk 00:50:40]} {[%emt 00:00:10]} f6 {[%clk 00:25:08]} {[%emt 00:00:17]}
58. Kg2 {[%clk 00:50:59]} {[%emt 00:00:10]} Kf7 {[%clk 00:25:02]} {[%emt
00:00:36]} 59. Kf2 {[%clk 00:51:17]} {[%emt 00:00:12]} Rh1 {[%clk 00:25:03]}
{[%emt 00:00:30]} 0-1

[ePGN "0.1;DGT LiveChess/2.2.5"]

[Event "Schack-SM 2023: Mastarklassen"]
[Site "Helsingborg Arena, Mellersta Stenbocksgatan 14, Helsingborg, Sweden"]
[Date "2023.07.05"]
[Round "5.1"]
[White "Nygren, David"]
[Black "Frisk, Ellinor"]
[Result "1-0"]
[TimeControl "90 minutes for 40 moves + 30 minutes for the rest of games + 30 seconds per move from move one."]
[BlackTitle "WIM"]
[WhiteElo "2157"]
[BlackElo "2178"]

1. e4 {[%clk 01:30:47]} {[%emt 00:00:12]} c5 {[%clk 01:30:17]} {[%emt
00:00:44]} 2. c3 {[%clk 01:31:08]} {[%emt 00:00:08]} e5 {[%clk 01:30:05]}
{[%emt 00:00:42]} 3. Nf3 {[%clk 01:30:04]} {[%emt 00:01:34]} Nc6 {[%clk
01:30:30]} {[%emt 00:00:05]} 4. Bc4 {[%clk 01:28:56]} {[%emt 00:01:39]} Be7
{[%clk 01:30:52]} {[%emt 00:00:07]} 5. d3 {[%clk 01:23:46]} {[%emt 00:05:40]}
Nf6 {[%clk 01:30:24]} {[%emt 00:00:59]} 6. O-O {[%clk 01:23:12]} {[%emt
00:01:03]} O-O {[%clk 01:30:50]} {[%emt 00:00:06]} 7. Re1 {[%clk 01:21:46]}
{[%emt 00:01:55]} d6 {[%clk 01:26:16]} {[%emt 00:05:05]} 8. a4 {[%clk
01:20:38]} {[%emt 00:01:38]} Bd7 {[%clk 01:15:16]} {[%emt 00:11:30]} 9. Nbd2
{[%clk 01:19:10]} {[%emt 00:01:59]} Qc8 {[%clk 01:10:23]} {[%emt 00:05:23]} 10.
Nf1 {[%clk 01:16:54]} {[%emt 00:02:45]} Be6 {[%clk 01:05:12]} {[%emt 00:05:42]}
11. Ng3 {[%clk 01:13:12]} {[%emt 00:04:11]} Na5 {[%clk 01:00:03]} {[%emt
00:05:40]} 12. Bxe6 {[%clk 01:09:57]} {[%emt 00:03:45]} Qxe6 {[%clk 01:00:31]}
{[%emt 00:00:03]} 13. b4 {[%clk 01:06:17]} {[%emt 00:04:10]} cxb4 {[%clk
00:55:31]} {[%emt 00:05:30]} 14. cxb4 {[%clk 01:06:33]} {[%emt 00:00:14]} Nc6
{[%clk 00:55:36]} {[%emt 00:00:26]} 15. b5 {[%clk 01:04:11]} {[%emt 00:02:51]}
Nd8 {[%clk 00:47:48]} {[%emt 00:08:19]} 16. Ba3 {[%clk 01:00:24]} {[%emt
00:04:16]} g6 {[%clk 00:41:17]} {[%emt 00:07:01]} 17. d4 {[%clk 00:57:53]}
{[%emt 00:03:01]} Rc8 {[%clk 00:37:34]} {[%emt 00:04:13]} 18. dxe5 {[%clk
00:55:57]} {[%emt 00:02:27]} Ne8 {[%clk 00:36:20]} {[%emt 00:01:44]} 19. exd6
{[%clk 00:50:21]} {[%emt 00:06:06]} Bxd6 {[%clk 00:36:48]} {[%emt 00:00:03]} 20.
Ng5 {[%clk 00:47:36]} {[%emt 00:03:14]} Qe7 {[%clk 00:36:54]} {[%emt 00:00:24]}
21. Bxd6 {[%clk 00:45:21]} {[%emt 00:02:46]} Nxd6 {[%clk 00:36:43]} {[%emt
00:00:41]} 22. e5 {[%clk 00:43:01]} {[%emt 00:02:49]} Nc4 {[%clk 00:31:23]}
{[%emt 00:05:50]} 23. f4 {[%clk 00:40:38]} {[%emt 00:02:53]} Ne6 {[%clk
00:30:23]} {[%emt 00:01:30]} 24. Nxe6 {[%clk 00:35:45]} {[%emt 00:05:24]} Qxe6
{[%clk 00:29:15]} {[%emt 00:01:37]} 25. Ne4 {[%clk 00:35:02]} {[%emt 00:01:14]}
Rfd8 {[%clk 00:29:18]} {[%emt 00:00:27]} 26. Qe2 {[%clk 00:33:38]} {[%emt
00:01:53]} Rd4 {[%clk 00:28:10]} {[%emt 00:01:38]} 27. Qf2 {[%clk 00:30:07]}
{[%emt 00:04:01]} Rcd8 {[%clk 00:26:09]} {[%emt 00:02:32]} 28. Qh4 {[%clk
00:29:30]} {[%emt 00:01:08]} h5 {[%clk 00:24:49]} {[%emt 00:01:50]} 29. Qg5
{[%clk 00:25:21]} {[%emt 00:04:39]} Qf5 {[%clk 00:17:44]} {[%emt 00:07:34]} 30.
Nf6+ {[%clk 00:17:51]} {[%emt 00:07:59]} Kf8 {[%clk 00:18:13]} {[%emt
00:00:02]} 31. Qxf5 {[%clk 00:16:11]} {[%emt 00:02:10]} gxf5 {[%clk 00:18:41]}
{[%emt 00:00:03]} 32. Nxh5 {[%clk 00:16:26]} {[%emt 00:00:13]} Rd2 {[%clk
00:14:22]} {[%emt 00:04:50]} 33. e6 {[%clk 00:13:30]} {[%emt 00:03:25]} fxe6
{[%clk 00:14:06]} {[%emt 00:00:47]} 34. Rxe6 {[%clk 00:13:54]} {[%emt
00:00:07]} Rc2 {[%clk 00:12:01]} {[%emt 00:02:33]} 35. Rae1 {[%clk 00:13:32]}
{[%emt 00:00:51]} Ra2 {[%clk 00:06:01]} {[%emt 00:06:31]} 36. Rf6+ {[%clk
00:13:15]} {[%emt 00:00:45]} Kg8 {[%clk 00:06:30]} {[%emt 00:00:03]} 37. h4
{[%clk 00:12:35]} {[%emt 00:01:10]} Rxa4 {[%clk 00:05:27]} {[%emt 00:01:33]} 38.
Re7 {[%clk 00:12:11]} {[%emt 00:00:53]} Rd6 {[%clk 00:04:20]} {[%emt 00:01:38]}
39. Rg7+ {[%clk 00:12:29]} {[%emt 00:00:12]} Kh8 {[%clk 00:04:47]} {[%emt
00:00:01]} 40. Rf8# {[%emt 00:00:07]} 1-0

[Event "Schack-SM 2023: Mastarklassen"]
[Site "Helsingborg Arena, Mellersta Stenbocksgatan 14, Helsingborg, Sweden"]
[Date "2023.07.05"]
[Round "5.2"]
[White "Cederstam, Carl"]
[Black "Lundin, Jan"]
[Result "0-1"]
[TimeControl "90 minutes for 40 moves + 30 minutes for the rest of games + 30 seconds per move from move one."]
[WhiteTitle "FM"]
[BlackTitle "FM"]
[WhiteElo "2196"]
[BlackElo "2203"]

1. Nf3 {[%clk 01:30:56]} {[%emt 00:00:03]} d6 {[%clk 01:29:40]} {[%emt
00:01:20]} 2. e4 {[%clk 01:28:42]} {[%emt 00:02:44]} c5 {[%clk 01:29:58]}
{[%emt 00:00:12]} 3. d4 {[%clk 01:29:04]} {[%emt 00:00:09]} cxd4 {[%clk
01:30:22]} {[%emt 00:00:06]} 4. Nxd4 {[%clk 01:29:29]} {[%emt 00:00:04]} Nf6
{[%clk 01:30:45]} {[%emt 00:00:08]} 5. Nc3 {[%clk 01:29:55]} {[%emt 00:00:05]}
e6 {[%clk 01:31:08]} {[%emt 00:00:07]} 6. g4 {[%clk 01:27:57]} {[%emt
00:02:27]} h6 {[%clk 01:31:31]} {[%emt 00:00:07]} 7. Rg1 {[%clk 01:27:49]}
{[%emt 00:00:38]} Be7 {[%clk 01:30:46]} {[%emt 00:01:15]} 8. Be3 {[%clk
01:25:24]} {[%emt 00:02:55]} d5 {[%clk 01:27:58]} {[%emt 00:03:18]} 9. exd5
{[%clk 01:08:17]} {[%emt 00:17:37]} Nxd5 {[%clk 01:28:05]} {[%emt 00:00:24]} 10.
Bb5+ {[%clk 01:06:29]} {[%emt 00:02:18]} Kf8 {[%clk 01:26:38]} {[%emt
00:01:56]} 11. Nxd5 {[%clk 00:58:12]} {[%emt 00:08:46]} Qxd5 {[%clk 01:26:26]}
{[%emt 00:00:43]} 12. Qe2 {[%clk 00:54:17]} {[%emt 00:04:25]} e5 {[%clk
01:04:13]} {[%emt 00:22:44]} 13. O-O-O {[%clk 00:46:45]} {[%emt 00:08:02]} exd4
{[%clk 00:57:10]} {[%emt 00:07:32]} 14. Bxd4 {[%clk 00:34:12]} {[%emt
00:13:03]} Qe6 {[%clk 00:50:21]} {[%emt 00:07:19]} 15. Qf3 {[%clk 00:21:00]}
{[%emt 00:13:40]} Nc6 {[%clk 00:38:04]} {[%emt 00:12:48]} 16. Rge1 {[%clk
00:19:26]} {[%emt 00:02:03]} Nxd4 {[%clk 00:34:54]} {[%emt 00:03:41]} 17. Rxe6
{[%clk 00:19:28]} {[%emt 00:00:28]} Nxe6 {[%clk 00:35:09]} {[%emt 00:00:16]} 18.
Qe4 {[%clk 00:16:15]} {[%emt 00:03:41]} g5 {[%clk 00:29:06]} {[%emt 00:06:33]}
19. Qe5 {[%clk 00:15:51]} {[%emt 00:00:54]} Kg8 {[%clk 00:28:33]} {[%emt
00:01:04]} 20. Bd3 {[%clk 00:12:03]} {[%emt 00:04:18]} Bf8 {[%clk 00:24:29]}
{[%emt 00:04:34]} 21. Be4 {[%clk 00:03:51]} {[%emt 00:08:41]} Bg7 {[%clk
00:20:39]} {[%emt 00:04:20]} 22. Qb5 {[%clk 00:00:39]} {[%emt 00:03:44]} Bf6
{[%clk 00:19:54]} {[%emt 00:01:14]} 23. a4 {[%clk 00:01:02]} {[%emt 00:00:07]}
Kg7 {[%clk 00:18:55]} {[%emt 00:01:29]} 24. a5 {[%clk 00:01:22]} {[%emt
00:00:10]} Nd4 {[%clk 00:14:08]} {[%emt 00:05:16]} 25. Qc5 {[%clk 00:01:12]}
{[%emt 00:00:38]} Rd8 {[%clk 00:13:46]} {[%emt 00:00:55]} 26. Rh1 {[%clk
00:00:35]} {[%emt 00:01:07]} Re8 {[%clk 00:07:21]} {[%emt 00:06:55]} 27. f3
{[%clk 00:00:39]} {[%emt 00:00:27]} b6 {[%clk 00:05:34]} {[%emt 00:02:16]} 28.
Qd6 {[%clk 00:00:38]} {[%emt 00:00:31]} Be5 {[%clk 00:05:25]} {[%emt 00:00:40]}
29. Qa3 {[%clk 00:00:34]} {[%emt 00:00:33]} Rb8 {[%clk 00:05:33]} {[%emt
00:00:23]} 30. h4 {[%clk 00:00:58]} {[%emt 00:00:06]} gxh4 {[%clk 00:02:52]}
{[%emt 00:03:12]} 31. Rxh4 {[%clk 00:01:16]} {[%emt 00:00:11]} Bf6 {[%clk
00:02:18]} {[%emt 00:01:04]} 32. Rh2 {[%clk 00:01:28]} {[%emt 00:00:16]} bxa5
{[%clk 00:02:30]} {[%emt 00:00:21]} 33. Qe3 {[%clk 00:01:35]} {[%emt 00:00:22]}
Rh8 {[%clk 00:02:30]} {[%emt 00:00:31]} 34. g5 {[%clk 00:01:11]} {[%emt
00:00:53]} hxg5 {[%clk 00:02:45]} {[%emt 00:00:16]} 35. Rxh8 {[%clk 00:01:19]}
{[%emt 00:00:23]} Kxh8 {[%clk 00:03:10]} {[%emt 00:00:04]} 36. c3 {[%clk
00:01:05]} {[%emt 00:00:43]} Nb3+ {[%clk 00:03:06]} {[%emt 00:00:35]} 37. Kc2
{[%clk 00:01:27]} {[%emt 00:00:09]} Be6 {[%clk 00:03:22]} {[%emt 00:00:13]} 38.
f4 {[%clk 00:01:42]} {[%emt 00:00:16]} Rd8 {[%clk 00:03:12]} {[%emt 00:00:40]}
39. Bd3 {[%clk 00:01:54]} {[%emt 00:00:18]} gxf4 {[%clk 00:02:40]} {[%emt
00:01:03]} 40. Qxf4 {[%clk 00:01:49]} {[%emt 00:00:35]} Kg7 {[%clk 00:01:59]}
{[%emt 00:01:10]} 41. Qg3+ {[%clk 00:27:15]} {[%emt 00:05:03]} Kf8 {[%clk
00:31:52]} {[%emt 00:00:37]} 42. Qf3 {[%clk 00:25:10]} {[%emt 00:02:34]} Ke7
{[%clk 00:30:13]} {[%emt 00:02:09]} 43. Qe3 {[%clk 00:23:45]} {[%emt 00:01:56]}
Kf8 {[%clk 00:27:57]} {[%emt 00:02:45]} 44. Qf3 {[%clk 00:21:20]} {[%emt
00:02:55]} Bg7 {[%clk 00:26:28]} {[%emt 00:01:59]} 45. Qe3 {[%clk 00:14:04]}
{[%emt 00:07:45]} Rd7 {[%clk 00:26:14]} {[%emt 00:00:46]} 46. Kb1 {[%clk
00:12:09]} {[%emt 00:02:25]} a4 {[%clk 00:24:28]} {[%emt 00:02:17]} 47. Kc2
{[%clk 00:10:53]} {[%emt 00:01:46]} a3 {[%clk 00:18:32]} {[%emt 00:06:27]} 48.
bxa3 {[%clk 00:11:20]} {[%emt 00:00:02]} Rc7 {[%clk 00:18:13]} {[%emt
00:00:47]} 49. c4 {[%clk 00:11:00]} {[%emt 00:00:52]} Nd4+ {[%clk 00:18:05]}
{[%emt 00:00:39]} 50. Kd2 {[%clk 00:10:32]} {[%emt 00:00:56]} Bxc4 {[%clk
00:17:49]} {[%emt 00:00:48]} 51. Bxc4 {[%clk 00:10:12]} {[%emt 00:00:49]} Rxc4
{[%clk 00:18:09]} {[%emt 00:00:10]} 52. Kd1 {[%clk 00:10:25]} {[%emt 00:00:16]}
Rc7 {[%clk 00:17:20]} {[%emt 00:01:20]} 53. Qg5 {[%clk 00:10:12]} {[%emt
00:00:39]} Ne6 {[%clk 00:16:45]} {[%emt 00:01:10]} 54. Qb5 {[%clk 00:09:39]}
{[%emt 00:01:01]} Bd4 {[%clk 00:14:06]} {[%emt 00:03:11]} 55. Qh5 {[%clk
00:08:40]} {[%emt 00:01:26]} Rd7 {[%clk 00:14:04]} {[%emt 00:00:34]} 56. Kc2
{[%clk 00:08:50]} {[%emt 00:00:18]} Ke7 {[%clk 00:12:58]} {[%emt 00:01:39]} 57.
Qh4+ {[%clk 00:09:01]} {[%emt 00:00:19]} Kd6 {[%clk 00:13:09]} {[%emt
00:00:18]} 58. Qh2+ {[%clk 00:08:22]} {[%emt 00:01:10]} Be5 {[%clk 00:13:15]}
{[%emt 00:00:24]} 59. Qh6 {[%clk 00:08:08]} {[%emt 00:00:38]} Rc7+ {[%clk
00:11:27]} {[%emt 00:02:23]} 60. Kd1 {[%clk 00:08:06]} {[%emt 00:00:31]} Rc3
{[%clk 00:10:18]} {[%emt 00:01:37]} 61. Qh7 {[%clk 00:08:04]} {[%emt 00:00:36]}
Rc7 {[%clk 00:09:53]} {[%emt 00:00:55]} 62. Qd3+ {[%clk 00:08:08]} {[%emt
00:00:25]} Ke7 {[%clk 00:09:49]} {[%emt 00:00:35]} 63. Qf5 {[%clk 00:08:14]}
{[%emt 00:00:18]} Bf4 {[%clk 00:09:39]} {[%emt 00:00:45]} 64. Qe4 {[%clk
00:07:26]} {[%emt 00:01:18]} f5 {[%clk 00:09:04]} {[%emt 00:01:06]} 65. Qa4
{[%clk 00:06:46]} {[%emt 00:01:05]} Kf6 {[%clk 00:09:10]} {[%emt 00:00:28]} 66.
Qa6 {[%clk 00:05:35]} {[%emt 00:01:41]} Be5 {[%clk 00:08:38]} {[%emt 00:01:03]}
67. Ke2 {[%clk 00:05:17]} {[%emt 00:00:46]} Bd4 {[%clk 00:08:17]} {[%emt
00:00:54]} 68. Qd6 {[%clk 00:05:27]} {[%emt 00:00:10]} Bc5 {[%clk 00:08:10]}
{[%emt 00:00:46]} 69. Qd2 {[%clk 00:04:55]} {[%emt 00:01:00]} Rh7 {[%clk
00:08:07]} {[%emt 00:00:35]} 70. Kf1 {[%clk 00:03:50]} {[%emt 00:01:31]} Rh1+
{[%clk 00:05:34]} {[%emt 00:03:07]} 71. Kg2 {[%clk 00:04:19]} {[%emt 00:00:01]}
Rg1+ {[%clk 00:05:39]} {[%emt 00:00:25]} 72. Kh2 {[%clk 00:04:42]} {[%emt
00:00:06]} Rg6 {[%clk 00:05:45]} {[%emt 00:00:24]} 73. Qc3+ {[%clk 00:04:02]}
{[%emt 00:01:10]} Bd4 {[%clk 00:06:05]} {[%emt 00:00:11]} 74. Qc8 {[%clk
00:04:17]} {[%emt 00:00:14]} Kg5 {[%clk 00:05:52]} {[%emt 00:00:42]} 75. Qc1+
{[%clk 00:04:28]} {[%emt 00:00:21]} Kf6 {[%clk 00:04:15]} {[%emt 00:02:07]} 76.
Qc8 {[%clk 00:04:45]} {[%emt 00:00:14]} Rh6+ {[%clk 00:03:18]} {[%emt
00:01:26]} 77. Kg2 {[%clk 00:05:12]} {[%emt 00:00:03]} Kg5 {[%clk 00:03:18]}
{[%emt 00:00:29]} 78. Qg8+ {[%clk 00:05:11]} {[%emt 00:00:33]} Rg6 {[%clk
00:03:30]} {[%emt 00:00:19]} 79. Qb8 {[%clk 00:05:33]} {[%emt 00:00:07]} Kh4+
{[%clk 00:03:11]} {[%emt 00:00:49]} 80. Kf3 {[%clk 00:04:56]} {[%emt 00:01:07]}
Kg5 {[%clk 00:03:21]} {[%emt 00:00:20]} 81. Qg3+ {[%clk 00:03:41]} {[%emt
00:01:45]} Kf6 {[%clk 00:03:45]} {[%emt 00:00:07]} 82. Qb8 {[%clk 00:03:50]}
{[%emt 00:00:20]} Bb6 {[%clk 00:03:56]} {[%emt 00:00:19]} 83. Qh8+ {[%clk
00:04:05]} {[%emt 00:00:15]} Kg5 {[%clk 00:03:59]} {[%emt 00:00:25]} 84. Kg3
{[%clk 00:03:47]} {[%emt 00:00:49]} f4+ {[%clk 00:04:19]} {[%emt 00:00:12]} 85.
Kf3 {[%clk 00:03:49]} {[%emt 00:00:26]} Kf5 {[%clk 00:04:36]} {[%emt 00:00:13]}
86. Qh3+ {[%clk 00:03:59]} {[%emt 00:00:20]} Ke5 {[%clk 00:03:58]} {[%emt
00:01:08]} 87. Qh8+ {[%clk 00:03:39]} {[%emt 00:00:50]} Rg7 {[%clk 00:03:39]}
{[%emt 00:00:49]} 88. Qh5+ {[%clk 00:02:44]} {[%emt 00:01:25]} Kd6 {[%clk
00:03:22]} {[%emt 00:00:46]} 89. Ke4 {[%clk 00:02:45]} {[%emt 00:00:30]} Rg5
{[%clk 00:02:58]} {[%emt 00:00:55]} 90. Qd1+ {[%clk 00:02:50]} {[%emt
00:00:24]} Bd4 {[%clk 00:03:06]} {[%emt 00:00:22]} 91. Qb1 {[%clk 00:00:38]}
{[%emt 00:02:42]} Re5+ {[%clk 00:03:25]} {[%emt 00:00:12]} 92. Kf3 {[%clk
00:00:35]} {[%emt 00:00:33]} Re3+ {[%clk 00:03:41]} {[%emt 00:00:14]} 93. Kg4
{[%clk 00:00:58]} {[%emt 00:00:07]} Bb6 {[%clk 00:02:48]} {[%emt 00:01:24]} 94.
Qb4+ {[%clk 00:01:11]} {[%emt 00:00:16]} Ke5 {[%clk 00:02:49]} {[%emt
00:00:29]} 95. Qb5+ {[%clk 00:01:26]} {[%emt 00:00:15]} Bc5 {[%clk 00:02:37]}
{[%emt 00:00:42]} 96. Qb8+ {[%clk 00:01:48]} {[%emt 00:00:09]} Ke4 {[%clk
00:02:39]} {[%emt 00:00:23]} 97. Qb7+ {[%clk 00:02:00]} {[%emt 00:00:22]} Kd4
{[%clk 00:02:02]} {[%emt 00:01:04]} 98. Qb2+ {[%clk 00:02:25]} {[%emt
00:00:08]} Kd5 {[%clk 00:01:50]} {[%emt 00:00:42]} 99. Qb7+ {[%clk 00:02:48]}
{[%emt 00:00:07]} Kd6 {[%clk 00:02:05]} {[%emt 00:00:16]} 100. Qb8+ {[%clk
00:03:12]} {[%emt 00:00:04]} Ke7 {[%clk 00:02:22]} {[%emt 00:00:11]} 101. Kf5
{[%clk 00:02:34]} {[%emt 00:01:10]} Nd4+ {[%clk 00:02:02]} {[%emt 00:00:50]}
102. Kg5 {[%clk 00:01:54]} {[%emt 00:01:07]} Rg3+ {[%clk 00:02:22]} {[%emt
00:00:13]} 103. Kh5 {[%clk 00:02:11]} {[%emt 00:00:13]} Ne6 {[%clk 00:02:32]}
{[%emt 00:00:21]} 104. a4 {[%clk 00:01:57]} {[%emt 00:00:44]} Kf7 {[%clk
00:02:14]} {[%emt 00:00:47]} 105. Qb7+ {[%clk 00:01:47]} {[%emt 00:00:41]} Be7
{[%clk 00:02:15]} {[%emt 00:00:28]} 106. Qc8 {[%clk 00:00:53]} {[%emt
00:01:24]} Rg5+ {[%clk 00:02:12]} {[%emt 00:00:34]} 0-1